bitfinex/quotes_SOLUSD_20240712
["timestamp","ask_amount","ask_price","bid_price","bid_amount"]
[1720813470887,7.1835,139.21,139.17,7.1853]
[1720813471087,7.183,139.22,139.18,7.1849]
[1720813471377,7.1824,139.23,139.19,7.1842]
[1720813471867,7.1829,139.22,139.18,7.1847]
[1720813472077,7.1829,139.22,139.19,7.1843]
[1720813472446,7.1829,139.22,139.18,7.1847]
[1720813473852,42.38607015,139.24,139.17,7.1853]
[1720813474086,45.0,139.23,139.17,7.1853]
[1720813474249,45.0,139.23,139.18,7.1848]
[1720813474449,45.0,139.23,139.17,7.1852]
[1720813474768,7.1834,139.21,139.18,7.1849]
[1720813475578,7.1834,139.21,139.13,6.0826]
[1720813475755,45.0,139.23,139.14,20.0]
[1720813476454,7.1829,139.22,139.18,7.1848]
[1720813476681,45.0,139.23,139.18,7.1848]
[1720813477177,7.183,139.22,139.18,7.1848]
[1720813477677,7.183,139.22,139.14,20.0]
[1720813477678,45.0,139.23,139.17,7.1853]
[1720813477991,7.1836,139.21,139.17,7.1853]
[1720813479562,7.1839,139.2,139.16,7.1857]
[1720813479751,7.1839,139.2,139.11,15.8024]
[1720813479950,7.1834,139.21,139.17,7.1853]
[1720813480964,7.183,139.22,139.18,7.1848]
[1720813481163,45.0,139.21,139.18,7.1848]
[1720813481360,45.0,139.21,139.12,20.0]
[1720813481563,7.1844,139.19,139.15,7.1862]
[1720813481764,45.0,139.22,139.16,7.1857]
[1720813481976,7.184,139.2,139.16,7.1857]
[1720813482160,45.0,139.19,139.16,7.1857]
[1720813482475,52.1846,139.19,139.11,15.8024]
[1720813482777,15.55,139.17,139.12,15.55]
[1720813483083,15.55,139.17,139.16,7.1859]
[1720813483452,15.55,139.18,139.17,7.1854]
[1720813483659,15.55,139.18,139.16,7.1857]
[1720813483867,15.55,139.18,139.16,7.1858]
[1720813484577,15.55,139.17,139.15,7.1863]
[1720813485375,15.55,139.16,139.14,7.1868]
[1720813486479,7.1852,139.18,139.15,7.1864]
[1720813486794,15.55,139.16,139.14,7.1868]
[1720813487001,15.55,139.15,139.13,7.1874]
[1720813487201,15.55,139.14,139.13,7.1874]
[1720813490400,7.1844,139.19,139.15,7.1861]
[1720813490577,15.55,139.16,139.15,7.1861]
[1720813490783,15.55,139.17,139.16,7.1859]
[1720813491277,15.55,139.18,139.17,7.1854]
[1720813491500,15.55,139.18,139.12,15.55]
[1720813491501,15.55,139.18,139.16,7.1858]
[1720813491678,22.5059,139.21,139.12,15.55]
[1720813491679,15.55,139.17,139.15,7.1864]
[1720813491878,15.55,139.17,139.16,7.1859]
[1720813492075,22.5059,139.21,139.17,7.1853]
[1720813492278,15.55,139.18,139.17,7.1853]
[1720813492494,22.5059,139.21,139.18,7.1849]
[1720813492817,15.55,139.21,139.18,7.1849]
[1720813493113,15.55,139.21,139.19,7.1843]
[1720813493689,15.55,139.22,139.19,7.1843]
[1720813494023,7.1829,139.22,139.18,7.1847]
[1720813494310,15.55,139.21,139.18,7.1847]
[1720813494685,7.1829,139.22,139.18,7.1847]
[1720813494880,7.1824,139.23,139.19,7.1842]
[1720813495820,7.1828,139.22,139.18,7.1847]
[1720813496400,7.1834,139.21,139.17,7.1852]
[1720813497208,7.1829,139.22,139.18,7.1847]
[1720813498411,7.1834,139.21,139.17,7.1852]
[1720813498799,25.07437015,139.24,139.16,7.1857]
[1720813498800,7.1839,139.2,139.16,7.1857]
[1720813498999,7.1839,139.2,139.12,15.9499]
[1720813499000,31.09,139.23,139.15,7.1862]
[1720813499217,7.1844,139.19,139.15,7.1862]
[1720813499912,7.1855,139.17,139.12,15.9499]
[1720813500087,62.9573,139.22,139.12,15.9499]
[1720813500485,7.1843,139.2,139.16,7.1859]
[1720813500683,45.0,139.19,139.16,7.1859]
[1720813500884,62.9573,139.22,139.16,7.1859]
[1720813501108,7.1841,139.2,139.16,7.1859]
[1720813501312,45.0,139.19,139.16,7.1859]
[1720813501816,17.9573,139.22,139.16,7.1858]
[1720813502127,52.1837,139.21,139.12,15.9499]
[1720813502290,31.09,139.23,139.12,15.9499]
[1720813502291,7.1825,139.23,139.19,7.1843]
[1720813502491,7.1825,139.23,139.12,15.9499]
[1720813502492,7.183,139.22,139.18,7.1847]
[1720813502822,7.1824,139.23,139.19,7.1843]
[1720813502996,29.4564,139.24,139.2,7.1838]
[1720813503321,29.4564,139.24,139.13,6.5602]
[1720813503322,28.7058,139.27,139.23,7.1822]
[1720813503532,7.1804,139.27,139.23,7.1822]
[1720813504188,7.1799,139.28,139.23,7.1822]
[1720813504389,7.1793,139.29,139.2,1.43640989]
[1720813504589,8.0473143,139.3,139.25,7.1809]
[1720813505016,7.1793,139.29,139.25,7.1809]
[1720813505227,7.1798,139.28,139.2,20.0]
[1720813505408,7.1805,139.27,139.2,20.0]
[1720813505606,7.1799,139.28,139.23,7.182]
[1720813506016,7.1805,139.27,139.23,7.182]
[1720813506197,7.1799,139.28,139.23,7.182]
[1720813506396,0.8684143,139.3,139.24,7.1817]
[1720813506639,7.1794,139.29,139.25,7.1811]
[1720813506805,7.1798,139.28,139.2,20.0]
[1720813507339,7.1793,139.29,139.2,20.0]
[1720813507689,0.8684143,139.3,139.2,20.0]
[1720813507906,0.8684143,139.3,139.24,7.1813]
[1720813508422,7.1794,139.29,139.24,7.1813]
[1720813509034,7.1794,139.29,139.25,7.1811]
[1720813509335,0.8684143,139.3,139.26,7.1805]
[1720813509658,7.1793,139.29,139.25,7.1811]
[1720813510824,7.1804,139.27,139.23,7.1821]
[1720813511729,7.1799,139.28,139.24,7.1816]
[1720813511931,21.6723,139.29,139.2,16.5822]
[1720813512119,28.8518,139.29,139.25,7.1811]
[1720813512317,7.1797,139.28,139.24,7.1816]
[1720813512534,7.1803,139.27,139.23,7.1821]
[1720813513429,7.1798,139.28,139.24,7.1816]
[1720813513819,21.6723,139.29,139.26,7.1807]
[1720813514021,21.6723,139.29,139.2,16.5822]
[1720813517045,7.1816,139.25,139.21,7.1832]
[1720813517229,7.1816,139.25,139.17,15.5426]
[1720813517230,7.1809,139.26,139.22,7.1827]
[1720813517431,52.1805,139.27,139.17,15.5426]
[1720813517637,52.1805,139.27,139.23,7.1819]
[1720813517638,52.1803,139.27,139.23,7.1819]
[1720813517833,52.1803,139.27,139.17,15.5426]
[1720813517834,21.6723,139.29,139.17,15.5426]
[1720813518048,21.6723,139.29,139.18,65.0]
[1720813518347,0.8684143,139.3,139.29,7.1792]
[1720813518852,0.8684143,139.3,139.28,7.1797]
[1720813519330,0.8684143,139.3,139.29,7.1792]
[1720813519723,0.8684143,139.3,139.28,7.1796]
[1720813519929,0.8684143,139.3,139.27,7.18]
[1720813520224,8.0475143,139.3,139.26,7.1804]
[1720813520426,0.8684143,139.3,139.27,7.1802]
[1720813521729,0.8684143,139.3,139.28,7.1797]
[1720813521931,0.8684143,139.3,139.29,7.1792]
[1720813525458,0.8684143,139.3,139.22,37.4094]
[1720813525752,0.8684143,139.3,139.23,20.0]
[1720813526338,0.8684143,139.3,139.21,16.4979]
[1720813526666,53.0473143,139.3,139.21,16.4979]
[1720813526968,8.0473143,139.3,139.21,16.4979]
[1720813527264,0.8684143,139.3,139.21,16.4979]
[1720813527440,8.0471143,139.3,139.26,7.1806]
[1720813527763,0.8684143,139.3,139.21,16.4979]
[1720813527958,7.1799,139.28,139.24,7.1817]
[1720813528539,7.1803,139.27,139.23,7.1821]
[1720813528741,7.1808,139.26,139.22,7.1827]
[1720813529155,7.1814,139.25,139.21,7.1832]
[1720813529464,7.1814,139.25,139.14,13.89586503]
[1720813529465,22.1633,139.26,139.14,29.23336503]
[1720813529667,45.0,139.24,139.14,15.3375]
[1720813529861,76.09,139.24,139.12,646.2]
[1720813530166,7.1829,139.22,139.18,7.1847]
[1720813530472,45.0,139.21,139.11,15.3375]
[1720813530649,7.1858,139.17,139.13,7.1874]
[1720813530851,7.185,139.18,139.13,7.1874]
[1720813531059,45.0,139.17,139.14,7.1869]
[1720813531262,45.0,139.17,139.09,110.15033045]
[1720813531564,7.1869,139.15,139.1,7.1889]
[1720813531772,45.0,139.14,139.1,7.1889]
[1720813532447,7.1881,139.12,139.09,110.15033045]
[1720813532754,6.0278,139.11,139.09,110.15033045]
[1720813533537,6.0278,139.11,139.09,117.33963045]
[1720813534170,6.0278,139.11,139.1,7.189]
[1720813534351,45.0,139.14,139.09,110.15033045]
[1720813534569,52.1871,139.14,139.09,117.33973045]
[1720813534863,7.1876,139.13,139.09,117.33973045]
[1720813535440,52.1871,139.14,139.09,117.33973045]
[1720813535865,52.1871,139.14,139.1,7.189]
[1720813536050,45.0,139.14,139.1,7.189]
[1720813536248,6.1715,139.16,139.09,110.15033045]
[1720813536436,45.0,139.15,139.1,7.189]
[1720813536642,52.1865,139.15,139.1,7.189]
[1720813536866,45.0,139.15,139.11,7.1882]
[1720813537162,45.0,139.15,139.09,110.15033045]
[1720813537461,6.1715,139.16,139.12,7.1879]
[1720813537843,6.1715,139.16,139.13,7.1874]
[1720813538763,15.585,139.19,139.09,110.15033045]
[1720813538949,15.585,139.19,139.16,7.1858]
[1720813539145,6.5279,139.2,139.09,110.15033045]
[1720813539340,6.5279,139.2,139.1,20.0]
[1720813539556,7.1853,139.18,139.14,7.1869]
[1720813539767,7.1845,139.19,139.15,7.1864]
[1720813541470,7.1849,139.18,139.14,7.1868]
[1720813542255,7.1845,139.19,139.15,7.1864]
[1720813542457,7.1845,139.19,139.14,7.1868]
[1720813542662,13.7119,139.2,139.15,7.186]
[1720813542864,7.1844,139.19,139.15,7.186]
[1720813543164,7.1849,139.18,139.13,7.1873]
[1720813543565,7.1855,139.17,139.13,7.1873]
[1720813544067,7.1849,139.18,139.14,7.1869]
[1720813544268,6.5279,139.2,139.09,110.15033045]
[1720813544470,76.09,139.19,139.12,7.1875]
[1720813544768,7.1862,139.16,139.12,7.1875]
[1720813545366,7.1855,139.17,139.13,7.1874]
[1720813546250,7.1851,139.18,139.13,7.1874]
[1720813546464,45.0,139.17,139.14,7.1869]
[1720813548476,45.0,139.17,139.13,7.1873]
[1720813548773,38.2745,139.19,139.09,110.15033045]
[1720813549078,13.7118,139.2,139.16,7.1855]
[1720813549755,7.1844,139.19,139.15,7.1863]
[1720813550570,45.0,139.18,139.09,110.15033045]
[1720813550781,45.0,139.19,139.09,110.15033045]
[1720813551771,7.1854,139.17,139.13,7.1871]
[1720813552069,52.1844,139.19,139.15,7.1863]
[1720813552275,7.1844,139.19,139.15,7.1863]
[1720813552461,13.712,139.2,139.16,7.1857]
[1720813552651,6.5279,139.2,139.17,7.1854]
[1720813553052,7.1835,139.21,139.17,7.1854]
[1720813553571,7.1839,139.2,139.16,7.1857]
[1720813554672,7.1845,139.19,139.15,7.1863]
[1720813555663,7.1845,139.19,139.16,7.1859]
[1720813556065,7.1841,139.2,139.16,7.1859]
[1720813556697,7.1846,139.19,139.15,7.1864]
[1720813557079,39.9343,139.23,139.09,110.15033045]
[1720813557373,7.184,139.2,139.16,7.1858]
[1720813557578,45.0,139.22,139.16,7.1858]
[1720813557778,7.1841,139.2,139.17,7.1854]
[1720813557977,45.0,139.22,139.18,7.1847]
[1720813558182,7.1829,139.22,139.18,7.1847]
[1720813558561,29.1605,139.23,139.18,7.1847]
[1720813559280,7.1829,139.22,139.18,7.1847]
[1720813559872,7.1821,139.24,139.2,7.1838]
[1720813560079,7.1815,139.25,139.21,7.183]
[1720813560576,22.172,139.26,139.13,46.9547]
[1720813560776,22.172,139.26,139.2,7.1835]
[1720813561089,7.1816,139.25,139.13,46.9547]
[1720813561270,22.172,139.26,139.14,65.0]
[1720813561575,36.89160161,139.28,139.22,7.1827]
[1720813561780,44.39693709,139.28,139.22,7.1827]
[1720813561986,44.39693709,139.28,139.21,7.1832]
[1720813562361,38.59533548,139.28,139.14,65.0]
[1720813562683,7.1808,139.26,139.23,7.182]
[1720813562893,7.1804,139.27,139.23,7.182]
[1720813563858,7.1792,139.29,139.22,15.0732]
[1720813564064,7.18,139.28,139.22,15.0732]
[1720813564272,18.8157143,139.3,139.22,15.0732]
[1720813564480,7.1801,139.28,139.24,7.1817]
[1720813564689,7.1793,139.29,139.25,7.181]
[1720813564892,7.1798,139.28,139.24,7.1816]
[1720813565383,7.1804,139.27,139.23,7.1821]
[1720813565594,7.1804,139.27,139.24,7.1818]
[1720813565773,7.1804,139.27,139.23,7.1821]
[1720813566081,0.8684143,139.3,139.18,16.4291]
[1720813566298,7.1795,139.29,139.25,7.181]
[1720813566671,7.1798,139.28,139.24,7.1816]
[1720813567594,45.8684143,139.3,139.18,16.4291]
[1720813567794,45.8684143,139.3,139.24,7.1817]
[1720813568093,45.8684143,139.3,139.18,16.4291]
[1720813568271,45.8684143,139.3,139.24,7.1818]
[1720813568272,7.1801,139.28,139.24,7.1818]
[1720813569068,45.8684143,139.3,139.23,7.1822]
[1720813569404,31.09,139.27,139.19,7.1842]
[1720813569576,45.0,139.26,139.14,16.2487]
[1720813569897,7.1815,139.25,139.21,7.1831]
[1720813570202,7.1815,139.25,139.21,7.183]
[1720813570371,52.1819,139.24,139.21,7.183]
[1720813570575,7.1815,139.25,139.21,7.183]
[1720813571077,7.1826,139.23,139.14,16.2487]
[1720813571264,7.1825,139.23,139.19,7.1841]
[1720813571676,13.2697,139.22,139.18,7.1847]
[1720813572081,6.0864,139.22,139.19,7.1844]
[1720813572297,6.0864,139.22,139.2,7.1837]
[1720813572673,13.2693,139.22,139.14,16.2487]
[1720813572879,7.1833,139.21,139.17,7.1852]
[1720813573199,6.0864,139.22,139.14,16.2487]
[1720813573611,13.2695,139.22,139.18,7.1848]
[1720813573900,13.2694,139.22,139.18,7.1848]
[1720813574681,6.0864,139.22,139.19,7.1843]
[1720813574878,6.0864,139.22,139.2,7.1838]
[1720813575193,6.0864,139.22,139.14,16.2487]
[1720813575381,6.0864,139.22,139.19,7.1843]
[1720813575793,6.0864,139.22,139.2,7.1838]
[1720813576522,6.0864,139.22,139.19,7.1842]
[1720813578015,13.2693,139.22,139.18,7.1848]
[1720813578215,7.1834,139.21,139.17,7.1852]
[1720813579086,6.0864,139.22,139.19,7.1844]
[1720813579701,13.2693,139.22,139.19,7.1844]
[1720813579889,7.1834,139.21,139.17,7.1852]
[1720813580089,45.0,139.2,139.17,7.1852]
[1720813581298,15.1655,139.21,139.19,7.1841]
[1720813582587,15.1655,139.21,139.18,7.1848]
[1720813583007,6.0864,139.22,139.19,7.1839]
[1720813583304,22.3474,139.24,139.2,7.1838]
[1720813583500,52.1825,139.23,139.19,7.1843]
[1720813583706,7.1829,139.22,139.18,7.1848]
[1720813583877,45.0,139.23,139.13,7.50416043]
[1720813584079,7.1831,139.22,139.18,7.1846]
[1720813584309,7.1834,139.21,139.18,7.1846]
[1720813584717,7.1829,139.22,139.19,7.1843]
[1720813585004,7.1829,139.22,139.13,7.50416043]
[1720813585005,7.183,139.22,139.18,7.1848]
[1720813586684,7.1834,139.21,139.18,7.1848]
[1720813587419,7.183,139.22,139.18,7.1848]
[1720813589120,7.1835,139.21,139.17,7.1852]
[1720813589416,7.1841,139.2,139.16,7.1858]
[1720813590011,45.0,139.23,139.13,7.50416043]
[1720813590221,45.0,139.23,139.19,7.1839]
[1720813590410,7.1829,139.22,139.18,7.1847]
[1720813590919,7.1831,139.22,139.18,7.1848]
[1720813591097,7.1831,139.22,139.19,7.1844]
[1720813591610,7.1831,139.22,139.18,7.1848]
[1720813593717,7.1831,139.22,139.19,7.1843]
[1720813593888,52.1824,139.23,139.19,7.1843]
[1720813594612,7.1834,139.21,139.17,7.1852]
[1720813595415,7.1831,139.22,139.18,7.1848]
[1720813595591,52.1825,139.23,139.19,7.1843]
[1720813596014,7.1829,139.22,139.19,7.1843]
[1720813596219,7.1834,139.21,139.18,7.1847]
[1720813597430,7.183,139.22,139.18,7.1847]
[1720813598045,7.1836,139.21,139.17,7.1853]
[1720813598336,15.0799,139.22,139.13,7.50416043]
[1720813598537,7.1846,139.19,139.15,7.186]
[1720813598738,15.56,139.16,139.14,7.1868]
[1720813599326,15.56,139.16,139.15,7.1864]
[1720813599937,15.56,139.16,139.14,7.1868]
[1720813600237,7.1844,139.19,139.15,7.1864]
[1720813600534,33.0376,139.22,139.13,7.187]
[1720813600535,15.56,139.16,139.13,7.187]
[1720813600733,7.1857,139.17,139.13,7.187]
[1720813601529,58.371,139.18,139.08,15.3782]
[1720813601759,58.371,139.18,139.14,7.1868]
[1720813603342,22.7226,139.16,139.12,7.1879]
[1720813603537,45.0,139.15,139.12,7.1879]
[1720813604942,15.5365,139.16,139.14,7.187]
[1720813605144,6.1859,139.18,139.15,7.1863]
[1720813606035,13.3709,139.18,139.14,7.1868]
[1720813606339,7.1855,139.17,139.13,7.1873]
[1720813606542,52.1862,139.16,139.12,7.1879]
[1720813606723,52.186,139.16,139.13,7.1873]
[1720813606931,52.186,139.16,139.12,7.1878]
[1720813608348,52.186,139.16,139.13,7.1874]
[1720813608531,45.0,139.16,139.13,7.1874]
[1720813610340,52.186,139.16,139.12,7.1879]
[1720813612033,45.0,139.16,139.13,7.1875]
[1720813612351,52.186,139.16,139.12,7.1879]
[1720813612740,45.0,139.16,139.13,7.1873]
[1720813613846,52.1861,139.16,139.12,7.1878]
[1720813617253,52.1861,139.16,139.13,7.1874]
[1720813617429,45.0,139.16,139.13,7.1874]
[1720813617628,13.3709,139.18,139.15,7.1864]
[1720813618042,13.3709,139.18,139.06,6.1975]
[1720813618043,20.88021216,139.18,139.14,7.1867]
[1720813619348,13.3709,139.18,139.14,7.1867]
[1720813619849,7.1854,139.17,139.13,7.1873]
[1720813620445,52.186,139.16,139.12,7.1879]
[1720813620828,7.1866,139.15,139.12,7.1879]
[1720813621132,7.1866,139.15,139.11,7.1884]
[1720813621442,52.1861,139.16,139.12,7.1879]
[1720813621957,13.371,139.18,139.06,6.1975]
[1720813622128,7.1856,139.17,139.07,65.0]
[1720813622328,7.186,139.16,139.07,65.0]
[1720813622528,6.1859,139.18,139.14,7.1867]
[1720813622529,15.56,139.15,139.14,7.1867]
[1720813622838,15.56,139.16,139.14,7.1867]
[1720813623143,15.56,139.17,139.15,7.1864]
[1720813623347,15.56,139.17,139.16,7.1859]
[1720813623651,15.56,139.18,139.16,7.1859]
[1720813624348,15.56,139.17,139.14,7.1866]
[1720813624541,15.56,139.16,139.14,7.1866]
[1720813624743,15.56,139.16,139.15,7.1864]
[1720813624951,15.56,139.17,139.15,7.1864]
[1720813625452,15.56,139.16,139.1,16.5352]
[1720813625651,15.56,139.14,139.09,15.56]
[1720813625858,15.56,139.14,139.08,15.56]
[1720813626361,17.9624,139.18,139.07,15.3224]
[1720813626558,15.56,139.12,139.11,7.1881]
[1720813627026,15.56,139.12,139.1,7.1888]
[1720813627459,7.187,139.14,139.09,7.1892]
[1720813627460,15.56,139.11,139.09,7.1892]
[1720813627638,15.56,139.1,139.04,15.56]
[1720813627828,15.56,139.09,139.04,15.56]
[1720813628042,15.56,139.1,139.08,7.1901]
[1720813628361,15.56,139.09,139.08,7.1901]
[1720813628531,15.56,139.1,139.09,7.1895]
[1720813628956,15.56,139.1,139.08,7.1898]
[1720813630656,16.1117,139.14,139.07,7.1904]
[1720813630657,15.56,139.09,139.07,7.1904]
[1720813630871,15.56,139.08,139.05,7.1916]
[1720813631159,15.56,139.07,139.06,7.191]
[1720813631847,22.7482,139.12,139.08,7.1901]
[1720813632038,15.56,139.09,139.08,7.1901]
[1720813632642,45.0,139.11,139.08,7.1901]
[1720813633434,7.19,139.09,139.02,220.41151617]
[1720813633639,7.19,139.09,139.05,7.1916]
[1720813633640,45.0,139.08,139.05,7.1916]
[1720813634756,45.0,139.08,139.02,220.41151617]
[1720813634941,23.1939,139.08,139.04,7.192]
[1720813635659,23.1939,139.08,139.05,7.1916]
[1720813636655,23.1939,139.08,139.04,7.192]
[1720813637039,45.0,139.07,139.04,7.192]
[1720813638736,45.0,139.07,139.05,7.1916]
[1720813639361,16.0037,139.08,139.06,7.1911]
[1720813639582,45.0,139.07,139.04,7.1917]
[1720813639879,45.0,139.07,139.04,7.192]
[1720813640341,52.1906,139.07,139.04,7.192]
[1720813640667,45.0,139.07,139.04,7.1921]
[1720813641053,45.0,139.07,139.05,7.1916]
[1720813641557,16.0037,139.08,139.05,7.1916]
[1720813642750,16.0037,139.08,139.02,220.41151617]
[1720813642751,22.9502,139.12,139.08,7.1899]
[1720813642957,7.1885,139.11,139.08,7.1899]
[1720813643152,15.7618,139.12,139.09,7.1894]
[1720813643380,15.7618,139.12,139.03,15.0418]
[1720813644177,7.189,139.1,139.06,7.1909]
[1720813644384,7.1897,139.09,139.05,7.1912]
[1720813644565,7.1903,139.08,139.04,7.192]
[1720813644873,7.1907,139.07,139.03,7.1924]
[1720813645077,7.1902,139.08,139.04,7.1921]
[1720813645271,7.1897,139.09,139.05,7.1913]
[1720813645448,52.1901,139.08,139.04,7.192]
[1720813646270,7.1906,139.07,139.03,7.1924]
[1720813646481,52.1912,139.06,139.03,7.1924]
[1720813646848,52.1912,139.06,139.02,227.60441617]
[1720813647053,52.1913,139.06,139.02,227.60461617]
[1720813647977,6.6466,139.07,139.04,7.1919]
[1720813648274,13.8372,139.07,139.04,7.1919]
[1720813648468,6.6466,139.07,139.05,7.1914]
[1720813648674,7.1897,139.09,139.05,7.1914]
[1720813648888,45.0,139.08,139.05,7.1914]
[1720813649245,52.1901,139.08,139.04,7.1919]
[1720813649849,45.0,139.08,139.03,7.1925]
[1720813650173,7.1907,139.07,139.03,7.1925]
[1720813650359,7.1907,139.07,139.04,7.1921]
[1720813650867,45.0,139.09,139.04,7.1921]
[1720813650868,7.1903,139.08,139.04,7.1921]
[1720813651052,45.0,139.07,139.04,7.1921]
[1720813651249,52.1906,139.07,139.04,7.1921]
[1720813651566,52.1906,139.07,139.03,7.1924]
[1720813651963,7.1911,139.06,139.03,7.1924]
[1720813652349,52.1908,139.07,139.03,7.1924]
[1720813653775,7.1911,139.06,139.03,7.1924]
[1720813654084,52.1907,139.07,139.03,7.1924]
[1720813654690,52.1907,139.07,139.02,220.41151617]
[1720813654691,6.5528,139.1,139.02,220.41151617]
[1720813654857,15.58,139.06,139.04,7.192]
[1720813655479,15.58,139.05,139.04,7.192]
[1720813655778,15.58,139.05,139.02,220.41151617]
[1720813655978,15.58,139.04,139.02,220.41151617]
[1720813657075,15.58,139.04,139.03,7.1923]
[1720813661185,15.58,139.04,139.02,220.41151617]
[1720813661477,15.58,139.03,139.02,227.60471617]
[1720813662384,7.1908,139.07,139.03,7.1924]
[1720813662559,15.58,139.04,139.03,7.1924]
[1720813664277,15.58,139.04,139.02,227.60451617]
[1720813664479,15.58,139.03,139.02,220.41151617]
[1720813668089,60.58,139.03,139.02,220.41151617]
[1720813669084,67.7726,139.03,139.02,220.41151617]
[1720813669780,60.58,139.03,139.02,220.41151617]
[1720813670501,67.7726,139.03,139.02,220.41151617]
[1720813673062,15.58,139.03,139.02,220.41151617]
[1720813675979,22.7726,139.03,139.02,220.41151617]
[1720813676168,67.7726,139.03,139.02,220.41151617]
[1720813681377,67.7726,139.03,139.02,178.5646757]
[1720813681591,7.1956,138.98,138.9,6.4371]
[1720813681766,15.58,138.93,138.9,6.4371]
[1720813681961,15.58,138.94,138.93,7.1978]
[1720813683068,15.58,138.95,138.94,7.1972]
[1720813683269,7.1939,139.01,138.93,15.58]
[1720813683474,15.58,138.98,138.96,7.1961]
[1720813683871,15.58,139.0,138.98,7.1951]
[1720813684078,21.702,139.02,138.97,7.1956]
[1720813684300,15.58,138.99,138.97,7.1956]
[1720813684872,15.58,138.99,138.94,15.58]
[1720813686093,15.58,138.99,138.97,7.1957]
[1720813686283,15.58,138.99,138.94,15.58]
[1720813686590,15.58,138.99,138.96,7.1962]
[1720813686781,15.58,138.97,138.92,15.58]
[1720813687092,21.702,139.02,138.94,7.1973]
[1720813687093,15.58,138.96,138.94,7.1973]
[1720813687879,15.58,138.97,138.94,7.1973]
[1720813688267,15.58,138.97,138.92,15.58]
[1720813688479,15.58,138.98,138.92,15.58]
[1720813688794,15.58,138.97,138.95,7.1966]
[1720813689294,15.58,138.97,138.96,7.1963]
[1720813689677,28.8955,139.02,138.97,7.1955]
[1720813689889,15.58,139.0,138.97,7.1955]
[1720813692299,15.58,139.0,138.96,7.1961]
[1720813694903,15.58,138.98,138.94,7.1972]
[1720813695202,15.58,138.97,138.93,7.1977]
[1720813695567,15.58,138.95,138.92,7.1982]
[1720813696278,15.58,138.94,138.91,7.1987]
[1720813696796,15.58,138.95,138.91,7.1987]
[1720813697208,15.58,138.95,138.92,7.1983]
[1720813698395,15.58,138.94,138.91,7.1987]
[1720813699796,22.7769,138.95,138.91,7.1987]
[1720813699995,7.1969,138.95,138.91,7.1987]
[1720813700191,22.7769,138.95,138.91,7.1987]
[1720813700407,7.1974,138.94,138.9,7.1993]
[1720813700701,15.58,138.92,138.9,7.1993]
[1720813700896,7.1974,138.94,138.9,7.1993]
[1720813701089,38.4167,138.96,138.86,32.1867]
[1720813701090,15.58,138.91,138.86,32.1867]
[1720813701295,7.1984,138.92,138.88,7.2001]
[1720813701484,15.58,138.9,138.89,7.1999]
[1720813701809,15.58,138.9,138.86,16.6067]
[1720813701985,15.58,138.9,138.87,7.2006]
[1720813702188,15.58,138.9,138.88,7.2004]
[1720813702590,15.58,138.91,138.88,7.2004]
[1720813702792,15.58,138.91,138.89,7.1996]
[1720813702986,15.58,138.92,138.89,7.1996]
[1720813703183,85.1567,138.96,138.9,7.1994]
[1720813703388,15.58,138.93,138.91,7.1985]